Cogmind - Beta 16 @@@ ROGUE MODE // 2025.11.26 @ 23:57:53 Player: ChromeKnight Result: Destroyed by as-11967 with Assembled Rifle Performance ------------- Evolutions (1) 500 Regions Visited (4) 800 Robots Destroyed (31) 155 Value Destroyed (729) 729 Prototype IDs (1) 20 Alien Tech Used (0) 0 Bonus (158) 158 TOTAL SCORE: 2362 Bonus ------- Follower Combat Kills 158 Cogmind --------- Core Integrity 0/400 Matter 203/300 Energy 83/100 System Corruption 0% Temperature Cool (0) Movement Core (1400) Ox27 Location -9/Mines Parts ------- > --- POWER (1) -------- (None) > --- PROPULSION (2) --- (None) > --- UTILITY (4) ------ Huge Storage Unit Hacking Suite > --- WEAPON (2) ------- Autogun > --- INVENTORY (25) --- Wheel Wheel Wheel Compact Wheel Signal Interpreter Improved Signal Interpreter Advanced Targeting Computer Propulsion Shielding Propulsion Shielding Light Armor Plating Medium Armor Plating Medium Armor Plating Improved Light Armor Plating Hacking Suite System Shield System Shield Improved EM Shotgun Heavy Particle Cannon Datajack Plasma Cutter Katana Signal Generator Peak State ------------ > --- POWER ------------ Improved Ion Engine > --- PROPULSION ------- Wheel Wheel > --- UTILITY ---------- Huge Storage Unit Propulsion Shielding Light Armor Plating Hacking Suite > --- WEAPON ----------- Improved EM Shotgun Autogun > --- INVENTORY -------- Ion Engine Wheel Wheel Wheel Compact Wheel Signal Interpreter Improved Signal Interpreter Advanced Targeting Computer Propulsion Shielding Propulsion Shielding Light Armor Plating Medium Armor Plating Medium Armor Plating Improved Light Armor Plating Hacking Suite System Shield System Shield System Shield System Shield Heavy Particle Cannon Autogun Mini Grenade Launcher Datajack Katana Signal Generator [Rating: 20] Favorites ----------- Power Improved Ion Engine Engine Improved Ion Engine Propulsion Wheel Wheel Wheel Utility Huge Storage Unit Storage Huge Storage Unit Hackware Hacking Suite Protection Light Armor Plating Weapon Light Assault Rifle Energy Gun EM Pulse Gun Ballistic Gun Light Assault Rifle Ballistic Cannon Light Cannon Launcher Mini Grenade Launcher Build | -11 -10 -10 -9 -9 ------- Run | Yrd Mat Min Mat Min Slots Evolved 2 | . . . 2 . Power . | . . . . . Propulsion . | . . . . . Utility 2 | . . . 2 . Weapon . | . . . . . Parts Attached 29 | 6 3 5 13 2 Power 4 | 1 . 1 2 . Engine 4 | 1 . 1 2 . Core . | . . . . . Reactor . | . . . . . Propulsion 7 | 2 . 2 3 . Treads . | . . . . . Leg . | . . . . . Wheel 7 | 2 . 2 3 . Hover . | . . . . . Flight . | . . . . . Utility 8 | 1 2 1 4 . Device . | . . . . . Storage 3 | 1 2 . . . Processor . | . . . . . Hackware 1 | . . . 1 . Protection 4 | . . 1 3 . Artifact . | . . . . . Weapon 10 | 2 1 1 4 2 Energy Gun 2 | 1 . . 1 . Energy Cannon . | . . . . . Ballistic Gun 6 | 1 1 . 3 1 Ballistic Cannon 1 | . . 1 . . Launcher 1 | . . . . 1 Special Weapon . | . . . . . Impact Weapon . | . . . . . Slashing Weapon . | . . . . . Piercing Weapon . | . . . . . Special Melee Weapon . | . . . . . Unidentified Prototypes 1 | . . . 1 . Parts Lost 18 | . 2 3 5 8 Power 3 | . 1 . 1 1 Propulsion 7 | . . 2 3 2 Utility 3 | . . . 1 2 Weapon 5 | . 1 1 . 3 Highest Loss Streak 8 | . 2 3 3 8 To Critical Strikes . | . . . . . Average Backups 12 | . 5 11 20 22 Power . | . . . 1 . Propulsion 2 | . 2 2 3 4 Utility 6 | . 2 7 10 12 Weapon 1 | . . 1 3 4 Tool/Special . | . . . . . Unused Backups 27 | . . 1 7 19 Power . | . . . . . Propulsion 4 | . . 1 . 3 Utility 17 | . . . 5 12 Weapon 4 | . . . 2 2 Tool/Special 2 | . . . . 2 Average Slot Usage (%) 84 | . 76 89 91 89 Engine 8 | . 5 12 10 9 Wheel 25 | . 28 27 21 19 Storage 12 | . 14 14 11 11 Hackware 3 | . . . 8 11 Protection 8 | . . 9 16 16 Energy Gun 6 | . 14 2 . . Ballistic Gun 16 | . 13 14 20 17 Ballistic Cannon 2 | . . 8 . . Peak Build Rating 20 | 6 7 10 20 18 Average Rating 10 | 4 5 8 16 16 On Entrance 7 | . 6 5 10 18 Avg Prop Armor Cover (%) . | . . . . . Naked Turns . | . . . . . Heaviest Build 97 | 12 83 92 97 95 Greatest Support 26 | 26 26 26 26 26 Greatest Overweight (x) 8 | . 3 4 4 8 Average Overweight (x) 2 | . 1 3 3 3 Largest Inventory Capacity 25 | 8 25 25 25 25 Average Capacity 23 | 7 20 25 25 25 Most Carried 25 | . 7 16 25 24 Average Carried 13 | . 5 11 21 23 Final Capacity 25 | 8 25 25 25 25 Final Carried 24 | . 7 16 24 22 Class Distribution -------------------- 95% | Mutant 4% | Scientist-Mutant Dominant Class ---------------- Mutant | -10/Materials Mutant | -10/Mines Mutant | -9/Materials Scientist-Mutant | -9/Mines Resources | -11 -10 -10 -9 -9 ----------- Run | Yrd Mat Min Mat Min Matter Collected 905 | 168 164 130 443 . Remotely . | . . . . . Salvage Created 1115 | . 240 179 650 46 Parts 72 | . 15 17 40 . Haulers Intercepted . | . . . . . Recyclers Shooed 1 | . . . 1 . Parts Field Recycled . | . . . . . Retrieved Matter . | . . . . . Parts Self-Destructed . | . . . . . Prevented . | . . . . . Parts Restored . | . . . . . Kills | -11 -10 -10 -9 -9 ------- Run | Yrd Mat Min Mat Min Combat Hostiles Destroyed 35 | . 8 4 10 13 Guns 22 | . 7 4 10 1 AOE 13 | . 1 . . 12 Classes Destroyed 10 | . 4 2 3 1 Worker 1 | . . . 1 . Tunneler 3 | . . 2 1 . Recycler 2 | . . 1 1 . Operator 2 | . 1 . 1 . Watcher 1 | . 1 . . . Swarmer 9 | . 6 3 . . Grunt 6 | . 2 1 3 . Duelist 1 | . . . 1 . Sentry 6 | . . . 6 . Assembled 13 | . . . . 13 Best Kill Streak 13 | . 6 3 7 13 Combat Bots Only 13 | . 6 3 5 13 Max Kills in Single Turn 4 | . 2 1 1 4 Gunslinging . | . . . . . Exploded 4 | . 1 . . 4 Melee . | . . . . . Uniques/NPCs Destroyed . | . . . . . Combat | -11 -10 -10 -9 -9 -------- Run | Yrd Mat Min Mat Min Hostile Shots Fired 169 | . 28 9 74 58 Missed 47 | . 8 2 22 15 Hits 122 | . 20 7 52 43 Melee 3 | . . . 1 2 Projectile 119 | . 20 7 51 41 Critical Strikes 6 | . . . 5 1 Damage Taken 1812 | . 308 55 747 702 Core 450 | . 39 6 132 273 Absorbed by Shields . | . . . . . Redirected to Shielding 51 | . . . 40 11 Core Remaining (%) 91 | 100 . 82 . . Volleys Fired 108 | . 21 25 52 10 Largest 2 | . 2 2 2 1 Hottest 60 | . 60 60 50 30 Shots Fired 200 | . 41 45 104 10 Gun 176 | . 41 30 103 2 Cannon 16 | . . 15 1 . Launcher 8 | . . . . 8 Special . | . . . . . Kinetic 166 | . 20 40 104 2 Thermal . | . . . . . Explosive 8 | . . . . 8 Electromagnetic 26 | . 21 5 . . Robot Hit Streak 20 | . 8 5 20 3 Robot Miss Streak 4 | . 4 2 2 1 Penetration Max . | . . . . . Secondary Targets 1 | . . . 1 . Max Gunslinging Chain 1 | . . . 1 . Shots Hit Robots 137 | . 24 25 83 5 Core Hits 81 | . 12 13 31 25 Critical Kills . | . . . . . Critical Parts Destroyed . | . . . . . Critical Strikes . | . . . . . Melee Attacks . | . . . . . Impact . | . . . . . Slashing . | . . . . . Piercing . | . . . . . Sneak Attacks . | . . . . . Combat Hostiles . | . . . . . Follow-up Attacks . | . . . . . Damage Inflicted 2888 | . 444 321 1173 950 Guns 1646 | . 312 146 1157 31 Cannons 191 | . . 175 16 . Explosions 1051 | . 132 . . 919 Melee . | . . . . . Ramming . | . . . . . Kinetic 1580 | . 101 275 1173 31 Thermal 132 | . 132 . . . Explosive 919 | . . . . 919 Electromagnetic 257 | . 211 46 . . Impact . | . . . . . Slashing . | . . . . . Piercing . | . . . . . Highest Corruption . | . . . . . Average Corruption . | . . . . . Corruption Purged . | . . . . . Corruption Blocked . | . . . . . Overload Shots . | . . . . . Overflow Damage 81 | . . . . 81 Projectiles . | . . . . . Explosions 81 | . . . . 81 Melee . | . . . . . Knockbacks 3 | . . 3 . . Impact . | . . . . . Kinetic 3 | . . 3 . . Secondary . | . . . . . Self-Inflicted Damage 165 | . 81 . . 84 Shots 4 | . 2 . . 2 Rammed . | . . . . . Targets Rammed . | . . . . . Kicked . | . . . . . Crushed . | . . . . . Highest Temperature 117 | . 22 40 117 . Average Temperature 23 | . 9 14 29 . Received Heat Transfer 441 | . 66 . 375 . Siege Activations . | . . . . . Martial Activations . | . . . . . Shielding Activations . | . . . . . Robots Disrupted . | . . . . . Combat Hostiles . | . . . . . Robots Corrupted . | . . . . . Combat Hostiles . | . . . . . Parts Fried . | . . . . . Impact Corruptions . | . . . . . Robots Melted . | . . . . . Combat Hostiles . | . . . . . Parts Melted 1 | . . . 1 . Heat Transferred 150 | . 150 . . . Parts Sabotaged . | . . . . . Parts Stolen . | . . . . . Parts Stripped . | . . . . . Power Chain Reactions 2 | . 2 . . . Alert | -11 -10 -10 -9 -9 ------- Run | Yrd Mat Min Mat Min Maximum Alert Level . | . . . . . Low Security (%) 100 | 100 100 100 100 100 Level 1 . | . . . . . Level 2 . | . . . . . Level 3 . | . . . . . Level 4 . | . . . . . Level 5 . | . . . . . High Security . | . . . . . Max Security . | . . . . . Peak Influence 135 | . 135 85 103 35 Initial 35 | . . . . 35 Average 24 | . 29 12 27 16 Influence Increases 872 | . 248 130 483 11 Destroy 0b10 Robot/C 560 | . 160 80 320 . Destroy 0b10 Robot/NC 45 | . 10 15 20 . Destroy Leader 152 | . 32 20 100 . Allied During Kill 13 | . . . 13 . Successful Hack 35 | . 22 . 13 . Disable Machine 15 | . . . 15 . Destroy Structure 22 | . 9 . 2 11 Lose Combat Pursuer 30 | . 15 15 . . Influence Decreases 872 | . 248 130 392 102 Entered New Map 56 | . . . . 56 Time Decay 701 | . 228 100 342 31 Lost Part 105 | . 20 30 40 15 Lost Ally 10 | . . . 10 . Squads Dispatched 3 | . . 2 1 . Investigation 2 | . . 1 1 . Extermination . | . . . . . Reinforcement . | . . . . . Assault 1 | . . 1 . . Garrison . | . . . . . Intercept . | . . . . . Searches Triggered . | . . . . . Construction Impeded . | . . . . . Haulers Reinforced . | . . . . . Active Scanning Responses . | . . . . . Cargo Convoy Interrupts . | . . . . . Stealth | -11 -10 -10 -9 -9 --------- Run | Yrd Mat Min Mat Min Distress Signals 5 | . 2 . 3 . Communications Jammed . | . . . . . Distress Signals . | . . . . . Times Spotted 66 | . 18 5 24 19 Peak Tracking Total 16 | . 4 4 8 16 Tactical Retreats 3 | . 1 1 . 1 Traps | -11 -10 -10 -9 -9 ------- Run | Yrd Mat Min Mat Min Traps Triggered . | . . . . . Indirectly . | . . . . . Trap Hack Attempts . | . . . . . Triggered . | . . . . . Disarmed . | . . . . . Reprogrammed . | . . . . . Reused . | . . . . . Traps Extracted . | . . . . . Installed . | . . . . . Triggered . | . . . . . Machines | -11 -10 -10 -9 -9 ---------- Run | Yrd Mat Min Mat Min Machines Disabled 1 | . . . 1 . Max in Single Turn . | . . . . . Machines Repaired . | . . . . . Machines Dismantled . | . . . . . Machines Sabotaged . | . . . . . Overloaded Fab Kills . | . . . . . Hacking | -11 -10 -10 -9 -9 --------- Run | Yrd Mat Min Mat Min Machines Accessed 14 | . 6 1 7 . Terminals 11 | . 6 . 5 . Fabricators . | . . . . . Repair Stations 1 | . . . 1 . Recycling Units . | . . . . . Scanalyzers 1 | . . . 1 . Garrison Access . | . . . . . Total Hacks 44 | . 19 1 24 . Successful 15 | . 6 1 8 . Failed 28 | . 13 . 15 . Catastrophic 8 | . 2 . 6 . Database Lockouts 1 | . . . 1 . Manual 30 | . 18 . 12 . Terminals 33 | . 19 . 14 . Fabricators . | . . . . . Repair Stations 3 | . . . 3 . Recycling Units . | . . . . . Scanalyzers 7 | . . . 7 . Garrison Access . | . . . . . Terminal Hacks 2 | . . 1 1 . Open Door 1 | . . 1 . . Locate Traps 1 | . . . 1 . Fabricator Hacks . | . . . . . Repair Station Hacks 1 | . . . 1 . Scan Component 1 | . . . 1 . Recycling Unit Hacks . | . . . . . Scanalyzer 6 | . . . 6 . Retrieve Study 6 | . . . 6 . Garrison Access Hacks . | . . . . . Unauthorized Hacks 6 | . 6 . . . Terminals 6 | . 6 . . . Operators 1 | . 1 . . . Skim 5 | . 5 . . . Fabricators . | . . . . . Repair Stations . | . . . . . Recycling Units . | . . . . . Scanalyzers . | . . . . . Garrison Access . | . . . . . Data Cores Recovered . | . . . . . Used . | . . . . . Hacking Detections 11 | . 5 . 6 . Full Trace Events 2 | . . . 2 . Feedback Events . | . . . . . Feedback Blocked . | . . . . . Robot Schematics Acquired . | . . . . . Robots Built . | . . . . . Authchips . | . . . . . Time . | . . . . . Total Robot Build Rating . | . . . . . Part Schematics Acquired . | . . . . . Parts Built . | . . . . . Authchips . | . . . . . Time . | . . . . . Total Part Build Rating . | . . . . . Part Studies Acquired 6 | . . . 6 . Parts Repaired . | . . . . . Time . | . . . . . Parts Recycled . | . . . . . Recycled Matter . | . . . . . Retrieved Matter . | . . . . . Retrieved Components . | . . . . . Parts Scanalyzed . | . . . . . Part Schematics Acquired . | . . . . . Parts Damaged . | . . . . . Bothacking | -11 -10 -10 -9 -9 ------------ Run | Yrd Mat Min Mat Min Used RIF Installer . | . . . . . Robots Hacked . | . . . . . Non-combat . | . . . . . Combat . | . . . . . Robot Hacks Applied . | . . . . . Relay Couplers Released . | . . . . . Fabnet Peak Effective % . | . . . . . Robots Rewired . | . . . . . Allies Hacked . | . . . . . Hacks Repelled . | . . . . . Allies | -11 -10 -10 -9 -9 -------- Run | Yrd Mat Min Mat Min Total Allies 1 | . . 1 . . Largest Group 1 | . . 1 1 . Highest-Rated Group 31 | . . 31 31 . Highest-Rated Ally 31 | . . 31 31 . Total Orders . | . . . . . Ally Attacks 32 | . . . 32 . Total Damage 485 | . . . 485 . Kills 6 | . . . 6 . Allies Corrupted . | . . . . . Allies Melted . | . . . . . Intel | -11 -10 -10 -9 -9 ------- Run | Yrd Mat Min Mat Min Active Infowar (turns) . | . . . . . Robot Analysis Total . | . . . . . Derelict Logs Recovered 2 | . . 2 . . Drone Launches . | . . . . . Drone Recoveries . | . . . . . Exploration | -11 -10 -10 -9 -9 ------------- Run | Yrd Mat Min Mat Min Turns Passed 2827 | 40 1116 555 1023 93 Spaces Moved 1593 | 37 581 334 588 53 Core 3 | 3 . . . . Treads . | . . . . . Legs . | . . . . . Wheels 1590 | 34 581 334 588 53 Hover . | . . . . . Flight . | . . . . . Fastest Speed 50 | 50 90 135 125 125 Average Speed 127 | 85 113 139 136 128 Slowest Speed 190 | 90 135 140 140 190 Overloaded Moves . | . . . . . Propulsion Burnouts . | . . . . . Robots Hopped . | . . . . . Potential Cave-ins . | . . . . . Cave-ins Triggered . | . . . . . Exploration Rate (%) 47 | 3 88 73 49 22 Regions Visited 4 Branch Regions 2 Pre-discovered Areas 2 | . 1 1 . . Known Exits Taken 1 | . . . 1 . Unknown Exits Taken 3 | 1 1 1 . . Scrap Searched 1 | . . 1 . . Spaces Dug . | . . . . . Terrain Destroyed 26 | . 9 . . 17 Melee . | . . . . . Projectile . | . . . . . AOE 26 | . 9 . . 17 Terrain Rammed . | . . . . . Walls Destroyed . | . . . . . Machines Disabled . | . . . . . Actions | -11 -10 -10 -9 -9 --------- Run | Yrd Mat Min Mat Min Total 2212 | 42 995 382 725 68 Wait 426 | . 382 6 36 2 Move 1589 | 36 580 333 587 53 Hop . | . . . . . Pick Up 39 | . 7 12 20 . Fast Attach 18 | 6 2 3 7 . Attach 10 | . 1 2 5 2 Detach 2 | . 1 . 1 . Swap 4 | . . . 3 1 Drop 16 | . 1 1 14 . Fire 108 | . 21 25 52 10 Melee . | . . . . . Ram . | . . . . . Kick . | . . . . . Crush . | . . . . . Escape Stasis . | . . . . . Rewire . | . . . . . Trap . | . . . . . Miscellaneous . | . . . . . Route ------- -11/Scrapyard -10/Materials (discovered 5 exits: *Mat x3 / *Min / Sub) -10/Mines (discovered 2 exits: *Mat x2) -9/Materials (discovered 5 exits: *Mat x3 / *Min x2) -9/Mines History --------- Turn | Location | Event 2 | -11/Scrapyard | Met Revision 17 25 | -11/Scrapyard | Discovered new exit (range 15) 41 | -11/Scrapyard | Entered Materials 288 | -10/Materials | Discovered new exit (range 7) 304 | -10/Materials | Build established: Mutant 352 | -10/Materials | Discovered new exit (range 12) 429 | -10/Materials | Discovered new exit (range 16) 638 | -10/Materials | Discovered new exit (range 16) 718 | -10/Materials | Learned 2 Storage zone layouts 777 | -10/Materials | Learned Storage trap positions 869 | -10/Materials | Identified exit to Subcaves 869 | -10/Materials | Learned location of 2 exits from Materials 899 | -10/Materials | Learned location of 3 exits from Materials 919 | -10/Materials | Learned 4 Subcaves zone layouts 927 | -10/Materials | Learned Storage terminal intel 943 | -10/Materials | Learned Storage security intel 1008 | -10/Materials | Learned location of 1 exit from Recycling 1157 | -10/Materials | Entered Mines 1161 | -10/Mines | Met a Derelict shopkeep closing up shop 1277 | -10/Mines | Lost 3 parts (2n1w) 1333 | -10/Mines | Discovered new exit (range 6) 1692 | -10/Mines | Discovered new exit (range 5) 1700 | -10/Mines | Met a Derelict testing a Signal Generator 1705 | -10/Mines | Found Signal Generator 1712 | -10/Mines | Entered Materials 1712 | -9/Materials | Accompanied by 1 ally 1712 | -9/Materials | Evolved 2 slots: Utility x2 1713 | -9/Materials | Identified exit to Mines 1714 | -9/Materials | Identified exit to Materials 2407 | -9/Materials | Central database locked down 2704 | -9/Materials | Lost 3 parts (1p2n) 2735 | -9/Materials | Entered Mines 2784 | -9/Mines | Assembled infested the area 2789 | -9/Mines | Assisted by a Guerilla fighting off Assembled 2808 | -9/Mines | Core integrity fell below 50% 2823 | -9/Mines | Core integrity fell below 20% 2828 | -9/Mines | Destroyed by as-11967 with Assembled Rifle Last Messages --------------- 02804_ Com. Wheel+ destroyed. 02805_ Destroyed Asb. F-torch. 02805_ as-21881 destroyed. 02805_ as-07790 destroyed. 02807_ T-07 Excavator is excavating. 02813_ T-07 Excavator destroyed. 02815_ Autogun+ destroyed. 02815_ Destroyed Autogun+. 02817_ as-63785 destroyed. 02817_ as-99200 destroyed. 02817_ as-90112 destroyed. 02818_ Ion Engine+ destroyed. 02821_ Destroyed Asb. Hover Unit. 02821_ as-44387 destroyed. 02821_ as-03459 destroyed. 02821_ Mni. Grenade Launcher+ destroyed. 02821_ Destroyed Mni. Grenade Launcher+. 02822_ Wheel+ destroyed. 02824_ Autogun+ destroyed. 02827_ as-04410 destroyed. Map ----- +----------------------------------------------------+ | ??????###### # #### ??? | | ??????# #?????? ????? | | ??????# #### #?????????? ????? | | ??????# #??#######????????????????? | | ??????# ###???????????????????????? | | ?????## ##??????????????????????? | | ????## #??????????????????????? | | ???## #??????????????????????? | | ??## ##??????????????????????? | | ??# #???????????????????????? | | ?## #???????????????????????? | | ?# #???????????????????????? | | ?# #??????????????##???????? | | ?# #????????????? ##??????? | | ?# ##?????###### ??????? | | ?# ####?# ??????? | | ?# ## a ?????? | | ?## %%% ""??????? | | ??## #????????? | | ???## #### % #????????? | | ????## ##??## #???????? | | ?????####??## ##??????? | | ??????##### # #??????? | | ??????# a a a ????? | | ??????# ????? | | ???????#* @ a ????? | | ???????# = ## ?????? | | ???????# ##?????????? | | ???????## # ### #??????????? | | ????????#########??# #??????????? | | ???????????????????? #??????????? | | ????????????????????? #??????????? | | ????????????????????? #??????????? | | ?????????????????????? #??????????? | | ??????????????????????????????????? | | ??????????????????????????????????? | | ??????????????????????????????????? | | ??????????????????????????????????? | | ??????????????????????????????????? | | ??????????????????????????????????? | | ??????????????????????????????????? | | ??????????????????????????????????? | | ??????????????????????????????????? | | | | | | | | | | | | | | | +----------------------------------------------------+ Best States ------------- Heat Dissipation 28 Energy Generation 12 Energy Capacity 265 Matter Stores 300 Matter Capacity 300 Sight Range 16 Terrain Scan Density 10 Armor Coverage 150 Propulsion Shielding 33 Evasion (%) 44 Offensive Hacking 10 Item Schematics ----------------- None Robot Schematics ------------------ None Fabricated ------------ Nothing Repaired ---------- Nothing Studied --------- Wheel | -9/Materials | Hacked Com. Wheel | -9/Materials | Hacked Autogun | -9/Materials | Hacked Datajack | -9/Materials | Hacked Mni. Grenade Launcher | -9/Materials | Hacked Ion Engine | -9/Materials | Hacked Alien Tech Used ----------------- None Achievements -------------- None Challenges ------------ None Game ------ Seed FieldWardroneModule Manual? 0 Play Time 00:13:42 Cumulative 591.3 hours Start 2025.11.26 @ 23:45:08 End 2025.11.26 @ 23:57:53 Sessions 1 Manual Loads 0 Difficulty Rogue Special Mode None Game No. 920 Rogue 765 Adventurer 148 Explorer 7 Win Type - Total 29 Types 21/1/4/1/0/0/1/0/0/1 Lore% 81 Gallery% 85 Achievement% 73 Wizard Run 0 Options --------- Layout 1 ASCII 0 Keyboard 0 Movement Numpad Keybinds 0 Fullscreen 2 Font 24/Smallcaps Map View 50x40 Zoom Use 0% Tactical HUD 1 Map Filters NONE Filters NONE Steam 1 RUN: ff0f0eba-fdba-428a-9075-688ef9db7284